fUST/lending_fUST_20250525
["ID","MTS","AMOUNT","RATE_DAILY","PERIOD"]
[362302095,1748176243865,-430.0,0.00019178,2]
[362302096,1748176243876,-430.0,0.00019178,2]
[362302099,1748176243886,-430.0,0.00019178,2]
[362302100,1748176243968,-430.0,0.00019178,2]
[362302101,1748176243977,-430.0,0.00019178,2]
[362302102,1748176243986,-1173.34,0.00019178,2]
[362302103,1748176243995,-430.0,0.00019178,2]
[362302104,1748176244004,-430.0,0.00019178,2]
[362302105,1748176244014,-2723.91,0.00019178,2]
[362302106,1748176244023,-430.0,0.00019178,2]
[362302107,1748176244033,-430.0,0.00019178,2]
[362302108,1748176244041,-430.0,0.00019178,2]
[362302109,1748176244051,-411.62861694,0.00019178,2]
[362302110,1748176244060,-430.0,0.00019178,2]
[362302111,1748176244070,-430.75564049,0.00019178,2]
[362302112,1748176244079,-2335.65,0.00019178,2]
[362302113,1748176244088,-430.0,0.00019178,2]
[362302114,1748176244098,-430.0,0.00019178,2]
[362302115,1748176244111,-4947.23,0.00019178,2]
[362302116,1748176244120,-430.0,0.00019178,2]
[362302117,1748176244129,-430.0,0.00019178,2]
[362302118,1748176244139,-430.0,0.00019178,2]
[362302119,1748176244148,-409.73085161,0.00019178,2]
[362302120,1748176244157,-430.0,0.00019178,2]
[362302121,1748176244166,-436.08668444,0.00019178,2]
[362302122,1748176244176,-430.0,0.00019178,2]
[362302123,1748176244185,-430.0,0.00019178,2]
[362302124,1748176244195,-328.46608704,0.00019178,2]
[362302125,1748176244204,-500.0,0.00019178,2]
[362302126,1748176244214,-500.0,0.00019178,2]
[362302127,1748176244223,-500.0,0.00019178,2]
[362302128,1748176244233,-500.0,0.00019178,2]
[362302129,1748176244242,-500.0,0.00019178,2]
[362302130,1748176244251,-500.0,0.00019178,2]
[362302132,1748176244261,-500.0,0.00019178,2]
[362302133,1748176244270,-500.0,0.00019178,2]
[362302134,1748176244280,-430.0,0.00019178,2]
[362302135,1748176244289,-500.0,0.00019178,2]
[362302136,1748176244298,-500.0,0.00019178,2]
[362302137,1748176244309,-500.0,0.00019178,2]
[362302138,1748176244318,-500.0,0.00019178,2]
[362302139,1748176244327,-500.0,0.00019178,2]
[362302140,1748176244336,-500.0,0.00019178,2]
[362302142,1748176244346,-357.66555141,0.00019178,2]
[362302145,1748176244355,-430.0,0.00019178,2]
[362302148,1748176244364,-1000.0,0.00019178,2]
[362302150,1748176244373,-401.62763383,0.00019178,2]
[362302151,1748176244382,-430.0,0.00019178,2]
[362302153,1748176244393,-430.0,0.00019178,2]
[362302155,1748176244402,-430.0,0.00019178,2]
[362302157,1748176244411,-430.0,0.00019178,2]
[362302159,1748176244421,-270.88160182,0.00019178,2]
[362302161,1748176244430,-1065.62,0.00019178,2]
[362302163,1748176244439,-430.0,0.00019178,2]
[362302165,1748176244449,-430.0,0.00019178,2]
[362302167,1748176244458,-2182.75,0.00019178,2]
[362302169,1748176244468,-500.0,0.00019178,2]
[362302171,1748176244477,-500.0,0.00019178,2]
[362302173,1748176244487,-500.0,0.00019178,2]
[362302175,1748176244497,-430.0,0.00019178,2]
[362302177,1748176244506,-500.0,0.00019178,2]
[362302179,1748176244515,-500.0,0.00019178,2]
[362302181,1748176244525,-500.0,0.00019178,2]
[362302183,1748176244534,-450.36588598,0.00019178,2]
[362302185,1748176244544,-500.0,0.00019178,2]
[362302187,1748176244554,-500.0,0.00019178,2]
[362302189,1748176244565,-430.0,0.00019178,2]
[362302191,1748176244575,-430.0,0.00019178,2]
[362302193,1748176244584,-430.0,0.00019178,2]
[362302195,1748176244594,-430.0,0.00019178,2]
[362302197,1748176244603,-430.0,0.00019178,2]
[362302199,1748176244613,-430.0,0.00019178,2]
[362302201,1748176244623,-500.0,0.00019178,2]
[362302203,1748176244633,-525.14,0.00019178,2]
[362302205,1748176244643,-430.0,0.00019178,2]
[362302207,1748176244652,-430.0,0.00019178,2]
[362302209,1748176244661,-430.0,0.00019178,2]
[362302211,1748176244671,-430.0,0.00019178,2]
[362302213,1748176244680,-430.0,0.00019178,2]
[362302215,1748176244690,-430.0,0.00019178,2]
[362302217,1748176244699,-374.07354736,0.00019178,2]
[362302219,1748176244709,-1251.08,0.00019178,2]
[362302221,1748176244718,-258.5672551,0.00019178,2]
[362302223,1748176244728,-430.0,0.00019178,2]
[362302225,1748176244737,-430.0,0.00019178,2]
[362302227,1748176244746,-222.25183646,0.00019178,2]
[362302229,1748176244756,-430.0,0.00019178,2]
[362302231,1748176244765,-430.0,0.00019178,2]
[362302233,1748176244774,-430.0,0.00019178,2]
[362302235,1748176244784,-386.59409681,0.00019178,2]
[362302237,1748176244793,-505.58259488,0.00019178,2]
[362302239,1748176244803,-430.0,0.00019178,2]
[362302241,1748176244812,-232.71756646,0.00019178,2]
[362302243,1748176244822,-430.0,0.00019178,2]
[362302245,1748176244831,-430.0,0.00019178,2]
[362302247,1748176244841,-1425.6,0.00019178,2]
[362302249,1748176244851,-430.0,0.00019178,2]
[362302251,1748176244860,-430.0,0.00019178,2]
[362302253,1748176244870,-430.0,0.00019178,2]
[362302255,1748176244880,-430.0,0.00019178,2]
[362302257,1748176244889,-430.0,0.00019178,2]
[362302259,1748176244898,-430.0,0.00019178,2]
[362302261,1748176244908,-430.0,0.00019178,2]
[362302263,1748176244917,-471.56601562,0.00019178,2]
[362302265,1748176244928,-430.0,0.00019178,2]
[362302267,1748176244938,-2647.36,0.00019178,2]
[362302269,1748176244947,-855.31,0.00019178,2]
[362302279,1748176245025,-430.0,0.00019178,2]
[362302280,1748176245034,-430.0,0.00019178,2]
[362302282,1748176245043,-504.86743008,0.00019178,2]
[362302284,1748176245053,-430.0,0.00019178,2]
[362302286,1748176245063,-430.0,0.00019178,2]
[362302288,1748176245073,-430.0,0.00019178,2]
[362302290,1748176245082,-430.0,0.00019178,2]
[362302292,1748176245092,-830.82,0.00019178,2]
[362302294,1748176245105,-430.0,0.00019178,2]
[362302296,1748176245114,-406.85729672,0.00019178,2]
[362302298,1748176245123,-430.0,0.00019178,2]
[362302300,1748176245133,-430.0,0.00019178,2]
[362302302,1748176245143,-430.0,0.00019178,2]
[362302304,1748176245152,-430.0,0.00019178,2]
[362302306,1748176245161,-430.0,0.00019178,2]
[362302308,1748176245171,-430.0,0.00019178,2]
[362302310,1748176245181,-430.0,0.00019178,2]
[362302312,1748176245191,-503.30978917,0.00019178,2]
[362302314,1748176245200,-430.0,0.00019178,2]
[362302316,1748176245210,-228.13849746,0.00019178,2]
[362302318,1748176245219,-663.01,0.00019178,2]
[362302320,1748176245228,-430.0,0.00019178,2]
[362302322,1748176245238,-500.0,0.00019178,2]
[362302324,1748176245247,-500.0,0.00019178,2]
[362302326,1748176245256,-680.39,0.00019178,2]
[362302328,1748176245266,-1177.34,0.00019178,2]
[362302330,1748176245277,-430.0,0.00019178,2]
[362302332,1748176245286,-500.0,0.00019178,2]
[362302334,1748176245295,-500.0,0.00019178,2]
[362302336,1748176245304,-500.0,0.00019178,2]
[362302338,1748176245313,-430.0,0.00019178,2]
[362302340,1748176245323,-500.0,0.00019178,2]
[362302342,1748176245332,-500.0,0.00019178,2]
[362302344,1748176245342,-500.0,0.00019178,2]
[362302346,1748176245351,-582.06435634,0.00019178,2]
[362302348,1748176245361,-420.10902446,0.00019178,2]
[362302350,1748176245370,-430.22767306,0.00019178,2]
[362302352,1748176245379,-430.0,0.00019178,2]
[362302354,1748176245389,-430.0,0.00019178,2]
[362302357,1748176245398,-430.0,0.00019178,2]
[362302359,1748176245408,-430.0,0.00019178,2]
[362302361,1748176245417,-430.0,0.00019178,2]
[362302363,1748176245426,-430.0,0.00019178,2]
[362302365,1748176245435,-430.0,0.00019178,2]
[362302367,1748176245445,-430.0,0.00019178,2]
[362302369,1748176245455,-430.0,0.00019178,2]
[362302371,1748176245465,-430.0,0.00019178,2]
[362302373,1748176245474,-430.0,0.00019178,2]
[362302375,1748176245483,-430.0,0.00019178,2]
[362302377,1748176245493,-430.0,0.00019178,2]
[362302379,1748176245503,-430.0,0.00019178,2]
[362302381,1748176245512,-405.57573971,0.00019178,2]
[362302383,1748176245521,-400.0,0.00019178,2]
[362302385,1748176245531,-430.0,0.00019178,2]
[362302387,1748176245540,-500.0,0.00019178,2]
[362302389,1748176245549,-500.0,0.00019178,2]
[362302391,1748176245559,-500.0,0.00019178,2]
[362302393,1748176245568,-410.75713999,0.00019178,2]
[362302395,1748176245577,-500.0,0.00019178,2]
[362302397,1748176245587,-500.0,0.00019178,2]
[362302399,1748176245596,-500.0,0.00019178,2]
[362302401,1748176245605,-430.0,0.00019178,2]
[362302403,1748176245615,-430.0,0.00019178,2]
[362302405,1748176245625,-430.0,0.00019178,2]
[362302407,1748176245635,-396.28540638,0.00019178,2]
[362302409,1748176245645,-476.0,0.00019178,2]
[362302411,1748176245655,-430.0,0.00019178,2]
[362302413,1748176245665,-412.88230758,0.00019178,2]
[362302415,1748176245675,-430.0,0.00019178,2]
[362302417,1748176245684,-885.36,0.00019178,2]
[362302419,1748176245694,-885.36,0.00019178,2]
[362302421,1748176245705,-430.0,0.00019178,2]
[362302423,1748176245714,-885.36,0.00019178,2]
[362302425,1748176245724,-430.0,0.00019178,2]
[362302427,1748176245734,-885.36,0.00019178,2]
[362302429,1748176245743,-885.36,0.00019178,2]
[362302431,1748176245753,-2762.56,0.00019178,2]
[362302433,1748176245762,-885.36,0.00019178,2]
[362302435,1748176245772,-885.36,0.00019178,2]
[362302437,1748176245782,-885.36,0.00019178,2]
[362302439,1748176245792,-885.36,0.00019178,2]
[362302441,1748176245802,-885.36,0.00019178,2]
[362302443,1748176245812,-885.36,0.00019178,2]
[362302445,1748176245821,-885.36,0.00019178,2]
[362302447,1748176245832,-885.36,0.00019178,2]
[362302449,1748176245841,-885.36,0.00019178,2]
[362302451,1748176245851,-885.36,0.00019178,2]
[362302453,1748176245860,-885.36,0.00019178,2]
[362302455,1748176245870,-430.0,0.00019178,2]
[362302457,1748176245879,-885.36,0.00019178,2]
[362302459,1748176245889,-885.36,0.00019178,2]
[362302461,1748176245898,-885.36,0.00019178,2]
[362302463,1748176245908,-885.36,0.00019178,2]
[362302465,1748176245918,-885.36,0.00019178,2]
[362302467,1748176245927,-885.36,0.00019178,2]
[362302470,1748176245937,-885.36,0.00019178,2]
[362302472,1748176245947,-885.43710549,0.00019178,2]
[362302474,1748176245956,-430.0,0.00019178,2]
[362302476,1748176245966,-430.0,0.00019178,2]
[362302478,1748176245975,-430.0,0.00019178,2]
[362302480,1748176245984,-430.0,0.00019178,2]
[362302482,1748176245994,-430.0,0.00019178,2]
[362302484,1748176246004,-430.0,0.00019178,2]
[362302486,1748176246013,-430.0,0.00019178,2]
[362302488,1748176246023,-430.0,0.00019178,2]
[362302490,1748176246032,-430.0,0.00019178,2]
[362302492,1748176246041,-430.0,0.00019178,2]
[362302494,1748176246051,-430.0,0.00019178,2]
[362302496,1748176246061,-430.0,0.00019178,2]
[362302498,1748176246070,-519.02868546,0.00019178,2]
[362302500,1748176246079,-430.0,0.00019178,2]
[362302502,1748176246088,-430.0,0.00019178,2]
[362302504,1748176246100,-430.0,0.00019178,2]
[362302506,1748176246111,-154.37179607,0.00019178,2]
[362302508,1748176246121,-430.0,0.00019178,2]
[362302510,1748176246130,-506.55194656,0.00019178,2]
[362302512,1748176246140,-430.0,0.00019178,2]
[362302514,1748176246150,-430.0,0.00019178,2]
[362302516,1748176246159,-430.0,0.00019178,2]
[362302518,1748176246169,-430.0,0.00019178,2]
[362302520,1748176246178,-512.80987894,0.00019178,2]
[362302522,1748176246189,-3896.53,0.00019178,2]
[362302524,1748176246199,-430.0,0.00019178,2]
[362302526,1748176246209,-430.0,0.00019178,2]
[362302528,1748176246218,-430.0,0.00019178,2]
[362302530,1748176246229,-500.0,0.00019178,2]
[362302532,1748176246238,-674.39,0.00019178,2]
[362302535,1748176246247,-430.0,0.00019178,2]
[362302537,1748176246256,-430.0,0.00019178,2]
[362302539,1748176246266,-430.0,0.00019178,2]
[362302541,1748176246275,-430.0,0.00019178,2]
[362302543,1748176246286,-430.0,0.00019178,2]
[362302545,1748176246295,-502.43799217,0.00019178,2]
[362302547,1748176246304,-430.0,0.00019178,2]
[362302549,1748176246314,-430.0,0.00019178,2]
[362302551,1748176246323,-430.0,0.00019178,2]
[362302553,1748176246332,-408.9128549,0.00019178,2]
[362302555,1748176246342,-281.88890146,0.00019178,2]
[362302557,1748176246351,-853.36,0.00019178,2]
[362302559,1748176246361,-430.0,0.00019178,2]
[362302561,1748176246370,-430.0,0.00019178,2]
[362302563,1748176246380,-802.84,0.00019178,2]
[362302565,1748176246389,-430.0,0.00019178,2]
[362302567,1748176246399,-430.0,0.00019178,2]
[362302569,1748176246408,-416.72240535,0.00019178,2]
[362302571,1748176246417,-430.0,0.00019178,2]
[362302573,1748176246427,-1272.21,0.00019178,2]
[362302575,1748176246436,-430.0,0.00019178,2]
[362302577,1748176246445,-430.0,0.00019178,2]
[362302579,1748176246455,-430.0,0.00019178,2]
[362302581,1748176246464,-430.0,0.00019178,2]
[362302583,1748176246473,-430.0,0.00019178,2]
[362302585,1748176246483,-1702.58,0.00019178,2]
[362302587,1748176246492,-388.4521312,0.00019178,2]
[362302589,1748176246502,-2643.52,0.00019178,2]
[362302591,1748176246512,-521.53,0.00019178,2]
[362302593,1748176246521,-487.37339246,0.00019178,2]
[362302595,1748176246531,-430.0,0.00019178,2]
[362302597,1748176246540,-3653.61,0.00019178,2]
[362302599,1748176246550,-430.0,0.00019178,2]
[362302601,1748176246560,-430.0,0.00019178,2]
[362302603,1748176246570,-430.0,0.00019178,2]
[362302605,1748176246580,-491.09,0.00019178,2]
[362302607,1748176246589,-430.0,0.00019178,2]
[362302609,1748176246599,-430.0,0.00019178,2]
[362302611,1748176246609,-430.0,0.00019178,2]
[362302613,1748176246619,-1230.29,0.00019178,2]
[362302616,1748176246629,-683.82,0.00019178,2]
[362302618,1748176246638,-430.0,0.00019178,2]
[362302620,1748176246648,-158.351435,0.00019178,2]
[362302622,1748176246657,-430.0,0.00019178,2]
[362302624,1748176246667,-430.0,0.00019178,2]
[362302626,1748176246676,-430.0,0.00019178,2]
[362302628,1748176246686,-572.43916416,0.00019178,2]
[362302630,1748176246696,-430.0,0.00019178,2]
[362302632,1748176246706,-2621.77,0.00019178,2]
[362302634,1748176246715,-430.0,0.00019178,2]
[362302636,1748176246725,-430.0,0.00019178,2]
[362302638,1748176246734,-430.0,0.00019178,2]
[362302640,1748176246744,-430.0,0.00019178,2]
[362302642,1748176246753,-430.0,0.00019178,2]
[362302644,1748176246763,-430.0,0.00019178,2]
[362302646,1748176246772,-485.96,0.00019178,2]
[362302648,1748176246781,-430.0,0.00019178,2]
[362302650,1748176246791,-430.0,0.00019178,2]
[362302652,1748176246800,-430.0,0.00019178,2]
[362302654,1748176246809,-2063.62,0.00019178,2]
[362302656,1748176246819,-633.47,0.00019178,2]
[362302658,1748176246828,-430.0,0.00019178,2]
[362302660,1748176246838,-430.0,0.00019178,2]
[362302662,1748176246847,-430.0,0.00019178,2]
[362302664,1748176246858,-430.0,0.00019178,2]
[362302666,1748176246867,-430.0,0.00019178,2]
[362302668,1748176246877,-7272.6,0.00019178,2]
[362302670,1748176246886,-430.0,0.00019178,2]
[362302672,1748176246896,-430.0,0.00019178,2]
[362302674,1748176246905,-430.0,0.00019178,2]
[362302676,1748176246915,-430.0,0.00019178,2]
[362302678,1748176246924,-430.0,0.00019178,2]
[362302680,1748176246933,-463.12,0.00019178,2]
[362302682,1748176246942,-430.0,0.00019178,2]
[362302684,1748176246953,-430.0,0.00019178,2]
[362302685,1748176246962,-430.0,0.00019178,2]
[362302687,1748176246971,-430.0,0.00019178,2]
[362302688,1748176246980,-430.0,0.00019178,2]
[362302690,1748176246990,-430.0,0.00019178,2]
[362302692,1748176246999,-430.0,0.00019178,2]
[362302694,1748176247009,-524.16,0.00019178,2]
[362302696,1748176247019,-430.0,0.00019178,2]
[362302697,1748176247029,-430.0,0.00019178,2]
[362302699,1748176247038,-430.0,0.00019178,2]
[362302701,1748176247047,-430.0,0.00019178,2]
[362302703,1748176247060,-6896.91,0.00019178,2]
[362302715,1748176247069,-430.0,0.00019178,2]
[362302718,1748176247177,-430.0,0.00019178,2]
[362302720,1748176247187,-430.0,0.00019178,2]
[362302722,1748176247196,-430.0,0.00019178,2]
[362302724,1748176247206,-430.0,0.00019178,2]
[362302725,1748176247215,-351.87785524,0.00019178,2]
[362302727,1748176247224,-430.0,0.00019178,2]
[362302729,1748176247233,-430.0,0.00019178,2]
[362302731,1748176247243,-430.0,0.00019178,2]
[362302733,1748176247252,-430.0,0.00019178,2]
[362302735,1748176247261,-430.0,0.00019178,2]
[362302737,1748176247270,-430.0,0.00019178,2]
[362302739,1748176247280,-430.0,0.00019178,2]
[362302741,1748176247289,-430.0,0.00019178,2]
[362302743,1748176247298,-430.0,0.00019178,2]
[362302745,1748176247308,-430.0,0.00019178,2]
[362302747,1748176247318,-850.05,0.00019178,2]
[362302749,1748176247327,-431.69620489,0.00019178,2]
[362302751,1748176247336,-430.0,0.00019178,2]
[362302753,1748176247346,-915.77,0.00019178,2]
[362302755,1748176247355,-430.0,0.00019178,2]
[362302757,1748176247365,-500.0,0.00019178,2]
[362302759,1748176247374,-430.0,0.00019178,2]
[362302761,1748176247384,-430.0,0.00019178,2]
[362302763,1748176247393,-559.81,0.00019178,2]
[362302765,1748176247402,-430.0,0.00019178,2]
[362302767,1748176247411,-430.0,0.00019178,2]
[362302769,1748176247421,-430.0,0.00019178,2]
[362302771,1748176247430,-430.0,0.00019178,2]
[362302773,1748176247438,-430.0,0.00019178,2]
[362302775,1748176247448,-430.0,0.00019178,2]
[362302777,1748176247457,-3925.13,0.00019178,2]
[362302779,1748176247466,-430.0,0.00019178,2]
[362302781,1748176247475,-430.0,0.00019178,2]
[362302783,1748176247485,-430.0,0.00019178,2]
[362302785,1748176247494,-430.0,0.00019178,2]
[362302787,1748176247504,-777.46,0.00019178,2]
[362302789,1748176247514,-430.0,0.00019178,2]
[362302791,1748176247524,-624.83,0.00019178,2]
[362302793,1748176247533,-430.0,0.00019178,2]
[362302795,1748176247543,-430.0,0.00019178,2]
[362302797,1748176247553,-430.0,0.00019178,2]
[362302799,1748176247563,-430.0,0.00019178,2]
[362302801,1748176247572,-430.0,0.00019178,2]
[362302803,1748176247582,-449.35205607,0.00019178,2]
[362302805,1748176247591,-430.0,0.00019178,2]
[362302807,1748176247600,-430.0,0.00019178,2]
[362302809,1748176247610,-151.0,0.00019178,2]
[362302811,1748176247620,-430.0,0.00019178,2]
[362302814,1748176247630,-151.0,0.00019178,2]
[362302816,1748176247640,-430.0,0.00019178,2]
[362302818,1748176247650,-835.41,0.00019178,2]
[362302820,1748176247660,-432.07013358,0.00019178,2]
[362302822,1748176247670,-469.90162291,0.00019178,2]
[362302824,1748176247679,-669.91,0.00019178,2]
[362302826,1748176247688,-430.0,0.00019178,2]
[362302828,1748176247698,-430.0,0.00019178,2]
[362302830,1748176247708,-329.484303,0.00019178,2]
[362302832,1748176247717,-215.0738,0.00019197,2]
[362302834,1748176247727,-158.875448,0.000192,3]
[362302836,1748176247736,-151.0,0.00019205,2]
[362302838,1748176247746,-500.0,0.00019205,2]
[362302840,1748176247755,-151.0,0.00019205,2]
[362302842,1748176247765,-511.09584803,0.00019233,2]
[362302844,1748176247775,-151.0,0.00019233,2]
[362302846,1748176247785,-151.0,0.0001926,2]
[362302848,1748176247794,-243.92055036,0.00019288,2]
[362302850,1748176247803,-6900.07155619,0.00019314,2]
[362302852,1748176247814,-160.0,0.00019368,2]
[362302854,1748176247824,-430.0,0.00019452,2]
[362302856,1748176247834,-553.02434713,0.00019452,2]
[362302858,1748176247843,-1027.42,0.00019452,2]
[362302860,1748176247852,-430.0,0.00019452,2]
[362302862,1748176247861,-430.0,0.00019452,2]
[362302864,1748176247871,-430.0,0.00019452,2]
[362302866,1748176247881,-443.83483562,0.00019452,2]
[362302868,1748176247891,-430.0,0.00019452,2]
[362302870,1748176247900,-400.0,0.00019452,2]
[362302872,1748176247910,-430.0,0.00019452,2]
[362302874,1748176247919,-430.0,0.00019452,2]
[362302876,1748176247929,-364.55035645,0.00019452,2]
[362302878,1748176247939,-430.0,0.00019452,2]
[362302880,1748176247948,-391.82520641,0.00019452,2]
[362302882,1748176247958,-430.0,0.00019452,2]
[362302884,1748176247968,-364.16638328,0.00019452,2]
[362302886,1748176247978,-290.29677932,0.00019452,2]
[362302888,1748176247987,-464.27381962,0.00019452,2]
[362302890,1748176247997,-430.0,0.00019452,2]
[362302892,1748176248006,-430.0,0.00019452,2]
[362302894,1748176248016,-1036.53709069,0.00019452,2]
[362302896,1748176248025,-430.0,0.00019452,2]
[362302898,1748176248035,-354.94312132,0.00019452,2]
[362302900,1748176248044,-430.0,0.00019452,2]
[362302902,1748176248054,-258.17688479,0.00019452,2]
[362302904,1748176248065,-430.0,0.00019452,2]
[362302906,1748176248075,-466.81032424,0.00019452,2]
[362302908,1748176248084,-363.13014817,0.00019452,2]
[362302910,1748176248094,-369.15354998,0.00019452,2]
[362302912,1748176248106,-430.0,0.00019452,2]
[362302914,1748176248115,-370.27034835,0.00019452,2]
[362302916,1748176248124,-359.31344587,0.00019452,2]
[362302918,1748176248134,-516.98823777,0.00019452,2]
[362302920,1748176248143,-473.83841884,0.00019452,2]
[362302922,1748176248153,-450.00000402,0.00019452,2]
[362302923,1748176248163,-328.89642057,0.00019452,2]
[362302925,1748176248173,-430.0,0.00019452,2]
[362302927,1748176248183,-418.01564813,0.00019452,2]
[362302928,1748176248192,-234.31647222,0.00019452,2]
[362302929,1748176248202,-430.0,0.00019452,2]
[362302930,1748176248212,-430.0,0.00019452,2]
[362302931,1748176248221,-498.54244994,0.00019452,2]
[362302932,1748176248231,-430.0,0.00019452,2]
[362302933,1748176248240,-156.13582771,0.00019452,2]
[362302934,1748176248251,-430.0,0.00019452,2]
[362302935,1748176248260,-430.0,0.00019452,2]
[362302936,1748176248270,-430.0,0.00019452,2]
[362302937,1748176248280,-430.0,0.00019452,2]
[362302938,1748176248290,-430.0,0.00019452,2]
[362302939,1748176248300,-326.55599469,0.00019452,2]
[362302940,1748176248310,-430.0,0.00019452,2]
[362302941,1748176248319,-400.0,0.00019452,2]
[362302942,1748176248329,-430.0,0.00019452,2]
[362302943,1748176248339,-491.38910983,0.00019452,2]
[362302944,1748176248349,-430.0,0.00019452,2]
[362302945,1748176248358,-430.0,0.00019452,2]
[362302947,1748176248368,-400.0,0.00019452,2]
[362302949,1748176248377,-500.24903475,0.00019452,2]
[362302951,1748176248387,-195.33330762,0.00019452,2]
[362302953,1748176248397,-430.0,0.00019452,2]
[362302955,1748176248406,-154.1186211,0.00019452,2]
[362302957,1748176248416,-430.0,0.00019452,2]
[362302959,1748176248426,-355.76069857,0.00019452,2]
[362302961,1748176248436,-438.51128961,0.00019452,2]
[362302963,1748176248445,-378.41339351,0.00019452,2]
[362302965,1748176248455,-430.0,0.00019452,2]
[362302967,1748176248466,-295.0319789,0.00019452,2]
[362302969,1748176248475,-426.97096546,0.00019452,2]
[362302971,1748176248485,-518.43572082,0.00019452,2]
[362302973,1748176248494,-444.35862921,0.00019452,2]
[362302975,1748176248504,-302.42575276,0.00019452,2]
[362302977,1748176248513,-401.19747719,0.00019452,2]
[362302979,1748176248523,-362.76924559,0.00019452,2]
[362302981,1748176248532,-430.0,0.00019452,2]
[362302983,1748176248541,-430.0,0.00019452,2]
[362302985,1748176248551,-430.0,0.00019452,2]
[362302987,1748176248561,-430.0,0.00019452,2]
[362302989,1748176248570,-430.0,0.00019452,2]
[362302991,1748176248579,-430.0,0.00019452,2]
[362302993,1748176248589,-430.0,0.00019452,2]
[362302995,1748176248599,-496.88159365,0.00019452,2]
[362302997,1748176248608,-357.49351454,0.00019452,2]
[362302999,1748176248617,-430.0,0.00019452,2]
[362303001,1748176248627,-430.0,0.00019452,2]
[362303003,1748176248636,-430.0,0.00019452,2]
[362303005,1748176248646,-430.0,0.00019452,2]
[362303007,1748176248656,-430.0,0.00019452,2]
[362303009,1748176248665,-430.0,0.00019452,2]
[362303011,1748176248675,-430.0,0.00019452,2]
[362303013,1748176248684,-431.22536101,0.00019452,2]
[362303015,1748176248694,-430.0,0.00019452,2]
[362303017,1748176248703,-430.0,0.00019452,2]
[362303019,1748176248712,-430.0,0.00019452,2]
[362303021,1748176248722,-400.0,0.00019452,2]
[362303023,1748176248732,-546.59860463,0.00019452,2]
[362303024,1748176248742,-430.0,0.00019452,2]
[362303026,1748176248751,-159.41329124,0.00019452,2]
[362303028,1748176248760,-430.0,0.00019452,2]
[362303030,1748176248770,-430.0,0.00019452,2]
[362303032,1748176248779,-165.92639359,0.00019452,2]
[362303034,1748176248788,-430.0,0.00019452,2]
[362303036,1748176248797,-216.10129984,0.00019452,2]
[362303038,1748176248808,-431.5140174,0.00019452,2]
[362303040,1748176248817,-430.0,0.00019452,2]
[362303042,1748176248827,-430.0,0.00019452,2]
[362303044,1748176248836,-478.0279735,0.00019452,2]
[362303046,1748176248845,-430.0,0.00019452,2]
[362303048,1748176248855,-430.0,0.00019452,2]
[362303050,1748176248864,-340.0,0.00019452,2]
[362303052,1748176248874,-430.0,0.00019452,2]
[362303055,1748176248887,-430.0,0.00019452,2]